bitfinex/quotes_SOLUSD_20241216
["timestamp","ask_amount","ask_price","bid_price","bid_amount"]
[1734355735795,9.07706357,215.7,215.64,15.20506357]
[1734355735999,20.0,215.67,215.64,15.20506357]
[1734355736293,9.07706357,215.68,215.64,6.128]
[1734355736595,9.07706357,215.69,215.64,6.128]
[1734355738479,9.07706357,215.7,215.64,6.128]
[1734355738799,20.0,215.67,215.64,6.128]
[1734355738995,20.0,215.67,215.64,15.20506357]
[1734355740669,9.07706357,215.7,215.64,15.20506357]
[1734355740885,9.07706357,215.71,215.64,6.128]
[1734355741085,9.07706357,215.71,215.65,9.07706357]
[1734355747002,9.07706357,215.7,215.64,15.20506357]
[1734355747174,9.07706357,215.71,215.64,15.20506357]
[1734355747376,9.07706357,215.7,215.64,15.20506357]
[1734355747893,9.07706357,215.71,215.64,15.20506357]
[1734355748091,9.07706357,215.72,215.65,9.07706357]
[1734355748294,9.07706357,215.71,215.65,9.07706357]
[1734355748900,9.07706357,215.71,215.64,15.20506357]
[1734355749769,9.07706357,215.72,215.65,9.07706357]
[1734355752403,1.75727619,215.79,215.66,0.69543125]
[1734355752572,9.07706357,215.69,215.64,6.128]
[1734355752772,9.07706357,215.69,215.65,3.61071145]
[1734355752986,9.07706357,215.69,215.64,6.128]
[1734355755705,8.57706357,215.69,215.64,6.128]
[1734355757096,9.07706357,215.68,215.64,6.128]
[1734355758682,9.07706357,215.67,215.64,6.128]
[1734355759085,9.07706357,215.68,215.64,6.128]
[1734355766012,21.0299,215.78,215.65,9.07706357]
[1734355766200,9.07706357,215.71,215.65,9.07706357]
[1734355767396,9.07706357,215.72,215.65,9.07706357]
[1734355770225,20.0,215.79,215.66,9.07706357]
[1734355770518,1.0299,215.83,215.67,3.61557169]
[1734355770519,9.07706357,215.72,215.67,3.61557169]
[1734355770686,9.07706357,215.75,215.68,9.07706357]
[1734355771117,9.07706357,215.74,215.68,9.07706357]
[1734355771303,9.07706357,215.73,215.67,9.07706357]
[1734355772133,9.07706357,215.73,215.68,3.61399066]
[1734355772301,9.07706357,215.73,215.67,9.07706357]
[1734355772500,9.07706357,215.73,215.68,3.61280502]
[1734355772811,9.07706357,215.73,215.67,9.07706357]
[1734355773019,9.07706357,215.73,215.68,3.61287922]
[1734355773320,9.07706357,215.73,215.67,9.07706357]
[1734355773522,9.07706357,215.73,215.68,3.61238924]
[1734355773728,9.07706357,215.72,215.66,23.776884]
[1734355774029,9.07706357,215.72,215.67,3.6125526]
[1734355774239,9.07706357,215.72,215.68,3.6125526]
[1734355774396,9.07706357,215.72,215.66,23.776884]
[1734355774726,9.07706357,215.71,215.67,3.61184031]
[1734355774902,9.07706357,215.71,215.65,9.07706357]
[1734355775219,9.07706357,215.72,215.66,3.61268662]
[1734355775525,9.07706357,215.72,215.67,3.61268662]
[1734355775728,9.07706357,215.72,215.66,9.07706357]
[1734355775932,9.07706357,215.72,215.67,3.61140463]
[1734355776218,9.07706357,215.72,215.66,9.07706357]
[1734355776807,9.07706357,215.7,215.64,6.128]
[1734355777005,9.07706357,215.69,215.65,3.61070494]
[1734355777298,9.07706357,215.69,215.64,6.128]
[1734355777496,9.07706357,215.69,215.65,3.61098696]
[1734355777810,9.07706357,215.69,215.64,6.128]
[1734355778017,9.07706357,215.69,215.65,3.61169091]
[1734355778197,9.07706357,215.69,215.64,6.128]
[1734355778398,9.07706357,215.69,215.65,3.611889]
[1734355778625,9.07706357,215.69,215.64,6.128]
[1734355779008,9.07706357,215.69,215.65,3.61192115]
[1734355779227,9.07706357,215.69,215.64,6.128]
[1734355779408,9.07706357,215.69,215.65,3.61204158]
[1734355779599,9.07706357,215.69,215.64,6.128]
[1734355779927,9.07706357,215.69,215.65,3.61214245]
[1734355780235,9.07706357,215.69,215.64,6.128]
[1734355782006,9.07706357,215.68,215.64,6.128]
[1734355782613,9.07706357,215.67,215.64,6.128]
[1734355782815,9.07706357,215.66,215.64,6.128]
[1734355783424,9.07706357,215.65,215.64,6.128]
[1734355783727,23.776884,215.78,215.64,6.128]
[1734355783901,9.07706357,215.68,215.64,6.128]
[1734355786446,23.776884,215.78,215.64,15.20506357]
[1734355786625,9.07706357,215.69,215.64,15.20506357]
[1734355787426,23.776884,215.78,215.64,15.20506357]
[1734355787622,9.07706357,215.69,215.64,15.20506357]
[1734355788935,20.0,215.75,215.64,15.20506357]
[1734355789126,9.07706357,215.7,215.64,15.20506357]
[1734355789327,9.07706357,215.71,215.65,9.07706357]
[1734355789550,9.07706357,215.72,215.65,9.07706357]
[1734355790149,9.07706357,215.71,215.65,9.07706357]
[1734355790326,9.07706357,215.71,215.66,3.61110433]
[1734355790526,9.07706357,215.71,215.65,9.07706357]
[1734355791249,9.07706357,215.7,215.64,15.20506357]
[1734355791417,9.07706357,215.7,215.65,3.61143127]
[1734355791621,9.07706357,215.7,215.64,15.20506357]
[1734355791821,9.07706357,215.7,215.65,3.61210353]
[1734355792121,9.07706357,215.7,215.64,15.20506357]
[1734355792317,9.07706357,215.7,215.65,3.61225582]
[1734355792518,9.07706357,215.7,215.64,15.20506357]
[1734355792721,9.07706357,215.71,215.65,12.68918973]
[1734355792950,9.07706357,215.7,215.64,6.128]
[1734355793128,9.07706357,215.7,215.65,3.61252807]
[1734355793318,9.07706357,215.7,215.64,15.20506357]
[1734355793523,9.07706357,215.7,215.65,3.61252908]
[1734355793720,9.07706357,215.7,215.64,15.20506357]
[1734355794638,9.07706357,215.71,215.65,9.07706357]
[1734355794951,9.07706357,215.73,215.67,32.85394757]
[1734355795525,1.76824588,215.81,215.67,32.85394757]
[1734355795726,1.76824588,215.81,215.65,0.69542194]
[1734355795727,9.07706357,215.75,215.69,9.07706357]
[1734355796623,9.07706357,215.76,215.71,6.2527]
[1734355798527,9.07706357,215.75,215.71,6.2527]
[1734355798928,9.07706357,215.74,215.71,6.2527]
[1734355799343,38.09966999,215.82,215.71,6.2527]
[1734355799548,9.07706357,215.75,215.71,6.2527]
[1734355800347,20.0,215.79,215.71,6.2527]
[1734355800348,9.07706357,215.72,215.71,6.2527]
[1734355801452,9.07706357,215.72,215.7,1.5731]
[1734355801641,9.07706357,215.71,215.7,1.5731]
[1734355802649,9.07706357,215.71,215.66,6.6233]
[1734355803466,9.07706357,215.68,215.66,6.6233]
[1734355803867,9.07706357,215.68,215.65,2.5686]
[1734355808564,1.81924357,215.74,215.65,2.5686]
[1734355808767,9.07706357,215.68,215.65,2.5686]
[1734355810260,9.07706357,215.66,215.65,2.5686]
[1734355810466,9.07706357,215.67,215.65,2.5686]
[1734355810655,9.07706357,215.68,215.65,2.5686]
[1734355810858,9.07706357,215.69,215.65,2.5686]
[1734355811573,9.07706357,215.68,215.65,2.5686]
[1734355817899,21.76381646,215.75,215.65,2.5686]
[1734355818213,9.07706357,215.68,215.65,2.5686]
[1734355818384,21.76381646,215.75,215.65,2.5686]
[1734355818674,9.07706357,215.7,215.65,2.5686]
[1734355820366,9.07706357,215.69,215.65,2.5686]
[1734355821275,9.07706357,215.68,215.65,2.5686]
[1734355822172,9.07706357,215.67,215.65,2.5686]
[1734355822379,9.07706357,215.68,215.65,2.5686]
[1734355826182,21.76381646,215.75,215.65,2.5686]
[1734355826183,9.07706357,215.69,215.65,2.5686]
[1734355826780,9.07706357,215.68,215.65,2.5686]
[1734355828360,20.0,215.75,215.65,2.5686]
[1734355828678,9.07706357,215.69,215.65,2.5686]
[1734355832666,20.0,215.75,215.65,2.5686]
[1734355832974,9.07706357,215.69,215.65,2.5686]
[1734355833757,9.07706357,215.68,215.65,2.5686]
[1734355836580,9.07706357,215.66,215.65,1.0]
[1734355841664,20.0,215.62,215.57,3.52532064]
[1734355841865,1.0299,215.64,215.46,7.7412]
[1734355841866,20.0,215.55,215.46,7.7412]
[1734355842101,20.0,215.58,215.51,9.07706357]
[1734355842269,20.0,215.58,215.47,7.81033046]
[1734355842474,1.0299,215.69,215.51,7.11414453]
[1734355842700,23.776884,215.68,215.52,6.205]
[1734355843001,20.0,215.65,215.52,6.205]
[1734355843174,9.07706357,215.58,215.52,15.28206357]
[1734355843376,9.07706357,215.57,215.52,6.205]
[1734355843600,9.07706357,215.56,215.52,6.205]
[1734355843907,20.0,215.68,215.53,26.12856727]
[1734355844072,9.07706357,215.62,215.56,9.07706357]
[1734355844584,9.07706357,215.57,215.53,1.6558]
[1734355845105,9.07706357,215.56,215.53,1.6558]
[1734355845676,20.0,215.68,215.53,1.6558]
[1734355846001,9.07706357,215.6,215.53,10.73286357]
[1734355846311,9.07706357,215.6,215.54,9.07706357]
[1734355847175,9.07706357,215.61,215.54,9.77284944]
[1734355847499,9.07706357,215.61,215.54,0.69578587]
[1734355847685,9.07706357,215.6,215.54,9.77284944]
[1734355847878,9.07706357,215.6,215.54,0.69578587]
[1734355849703,9.07706357,215.6,215.53,10.73286357]
[1734355850009,9.07706357,215.6,215.54,9.07706357]
[1734355850212,1.79052554,215.69,215.58,9.07706357]
[1734355850504,9.07706357,215.63,215.54,24.47262712]
[1734355850679,9.07706357,215.61,215.55,9.07706357]
[1734355850881,9.07706357,215.59,215.53,10.73286357]
[1734355851302,9.07706357,215.59,215.53,1.6558]
[1734355851517,9.07706357,215.58,215.53,1.6558]
[1734355852021,9.07706357,215.6,215.54,9.07706357]
[1734355852185,9.07706357,215.61,215.55,9.07706357]
[1734355852384,20.0,215.68,215.56,9.07706357]
[1734355852615,9.07706357,215.62,215.56,9.07706357]
[1734355852788,20.0,215.68,215.55,9.07706357]
[1734355852993,9.07706357,215.61,215.55,9.07706357]
[1734355853208,20.0,215.67,215.57,9.07706357]
[1734355853405,9.07706357,215.64,215.58,9.07706357]
[1734355853705,9.07706357,215.63,215.57,9.07706357]
[1734355854209,9.07706357,215.64,215.58,9.07706357]
[1734355854408,9.07706357,215.63,215.57,9.07706357]
[1734355854922,9.07706357,215.63,215.56,0.69572994]
[1734355855083,9.07706357,215.61,215.55,23.776884]
[1734355855283,9.07706357,215.61,215.55,32.85394757]
[1734355855990,9.07706357,215.6,215.53,17.8470081]
[1734355856682,9.07706357,215.61,215.54,9.07706357]
[1734355857105,9.07706357,215.61,215.55,9.07706357]
[1734355857489,9.07706357,215.63,215.57,9.07706357]
[1734355857911,20.0,215.67,215.58,9.07706357]
[1734355857912,9.07706357,215.65,215.58,9.07706357]
[1734355858616,20.0,215.68,215.58,9.07706357]
[1734355858818,9.07706357,215.65,215.6,7.9293]
[1734355858992,9.07706357,215.66,215.6,17.00636357]
[1734355859184,9.07706357,215.67,215.6,17.00636357]
[1734355861014,9.07706357,215.7,215.64,9.07706357]
[1734355861320,9.07706357,215.72,215.65,9.07706357]
[1734355861681,2.71824516,215.73,215.65,9.07706357]
[1734355861682,9.07706357,215.71,215.65,9.07706357]
[1734355862688,9.07706357,215.7,215.64,9.07706357]
[1734355863039,9.07706357,215.66,215.6,7.9293]
[1734355863189,9.07706357,215.67,215.61,9.07706357]
[1734355863582,9.07706357,215.67,215.6,17.00636357]
[1734355863981,9.07706357,215.67,215.61,9.07706357]
[1734355864186,9.07706357,215.69,215.62,9.07706357]
[1734355864522,9.07706357,215.71,215.65,9.07706357]
[1734355864906,9.07706357,215.7,215.64,9.07706357]
[1734355865321,9.07706357,215.7,215.62,0.69553627]
[1734355865533,9.07706357,215.7,215.63,9.07706357]
[1734355865681,9.07706357,215.69,215.61,23.776884]
[1734355865889,9.07706357,215.69,215.63,9.07706357]
[1734355866384,9.07706357,215.7,215.63,9.07706357]
[1734355866608,9.07706357,215.7,215.64,9.07706357]
[1734355867307,9.07706357,215.7,215.63,9.07706357]
[1734355867515,9.07706357,215.69,215.6,8.62478045]
[1734355867690,9.07706357,215.67,215.61,9.07706357]
[1734355867893,9.07706357,215.68,215.61,9.07706357]
[1734355870494,9.07706357,215.68,215.62,9.07706357]
[1734355870794,9.07706357,215.72,215.65,9.07706357]
[1734355871006,11.79530873,215.73,215.66,9.07706357]
[1734355871402,2.8877757,215.79,215.67,32.85394757]
[1734355871601,9.07706357,215.77,215.7,9.07706357]
[1734355871911,11.86322738,215.78,215.71,9.07706357]
[1734355872099,9.07706357,215.77,215.69,1.5219]
[1734355872293,9.07706357,215.75,215.69,1.5219]
[1734355873129,9.07706357,215.74,215.69,1.5219]
[1734355873514,9.07706357,215.73,215.69,1.5219]
[1734355874295,9.07706357,215.72,215.69,1.5219]
[1734355874527,9.07706357,215.73,215.69,1.5219]
[1734355874732,9.07706357,215.74,215.69,1.5219]
[1734355875130,9.07706357,215.7,215.63,8.1049]
[1734355875446,9.07706357,215.68,215.63,8.1049]
[1734355875652,9.07706357,215.66,215.63,8.1049]
[1734355876147,1.0299,215.76,215.63,8.1049]
[1734355876148,20.0,215.74,215.63,8.1049]
[1734355876446,9.07706357,215.67,215.63,8.1049]
[1734355876622,9.07706357,215.66,215.63,8.1049]
[1734355877950,9.07706357,215.66,215.58,1.5801]
[1734355878130,9.07706357,215.63,215.58,7.7381]
[1734355879545,9.07706357,215.62,215.58,7.7381]
[1734355880136,9.07706357,215.63,215.58,7.7381]
[1734355886049,38.17633937,215.71,215.58,16.81516357]
[1734355886050,9.07706357,215.65,215.58,16.81516357]
[1734355887454,9.07706357,215.64,215.58,16.81516357]
[1734355887630,9.07706357,215.64,215.58,7.7381]
[1734355888355,9.07706357,215.63,215.58,7.7381]
[1734355890542,9.07706357,215.64,215.58,16.81516357]
[1734355891340,9.07706357,215.63,215.58,7.7381]
[1734355894941,9.07706357,215.6,215.58,6.158]
[1734355895142,9.07706357,215.59,215.58,6.158]
[1734355895332,9.07706357,215.6,215.53,17.36466357]
[1734355896163,9.07706357,215.59,215.53,17.36466357]
[1734355896461,9.07706357,215.6,215.53,17.36466357]
[1734355896646,9.07706357,215.6,215.54,9.07706357]
[1734355897034,1.86808509,215.71,215.58,9.07706357]
[1734355897234,9.07706357,215.65,215.58,9.07706357]
[1734355897435,9.07706357,215.64,215.58,9.07706357]
[1734355897942,1.0299,215.73,215.61,9.07706357]
[1734355898148,9.07706357,215.67,215.61,9.07706357]
[1734355898458,9.07706357,215.68,215.61,9.07706357]
[1734355898873,9.07706357,215.67,215.61,9.07706357]
[1734355899238,9.07706357,215.64,215.59,7.8451]
[1734355902572,9.07706357,215.62,215.59,7.8451]
[1734355903144,9.07706357,215.61,215.59,7.8451]
[1734355904092,9.07706357,215.61,215.54,9.07706357]
[1734355904093,9.07706357,215.6,215.54,7.6286]
[1734355904374,9.07706357,215.57,215.54,7.6286]
[1734355904545,9.07706357,215.58,215.54,7.6286]
[1734355906244,9.07706357,215.56,215.48,6.3285]
[1734355906661,9.07706357,215.56,215.5,9.07706357]
[1734355907776,9.07706357,215.55,215.49,9.07706357]
[1734355908384,9.07706357,215.55,215.48,6.3285]
[1734355908551,9.07706357,215.55,215.49,9.07706357]
[1734355908948,9.07706357,215.5,215.48,6.3285]
[1734355910580,9.07706357,215.5,215.47,1.6037]
[1734355911460,1.3557,215.63,215.47,1.6037]
[1734355911661,9.07706357,215.52,215.47,1.6037]
[1734355913052,9.07706357,215.51,215.47,1.6037]
[1734355913973,9.07706357,215.5,215.47,1.6037]
[1734355915987,9.07706357,215.49,215.47,1.6037]
[1734355916959,9.07706357,215.48,215.47,1.6037]
[1734355919253,9.07706357,215.49,215.47,1.6037]
[1734355922958,20.0,215.56,215.47,1.6037]
[1734355923174,9.07706357,215.52,215.47,1.6037]
[1734355925061,9.07706357,215.51,215.47,1.6037]
[1734355925577,9.07706357,215.49,215.47,1.6037]
[1734355929578,9.07706357,215.5,215.47,1.6037]
[1734355929784,9.07706357,215.51,215.47,1.6037]
[1734355931381,20.0,215.57,215.47,1.6037]
[1734355931578,9.07706357,215.53,215.47,10.68076357]
[1734355932400,9.07706357,215.53,215.47,1.6037]
[1734355932771,9.07706357,215.53,215.47,10.68076357]
[1734355933679,9.07706357,215.54,215.48,9.07706357]
[1734355935509,36.30825428,215.6,215.48,9.07706357]
[1734355935691,9.07706357,215.57,215.51,9.07706357]
[1734355937326,1.87944314,215.64,215.5,6.1063]
[1734355937492,1.0299,215.69,215.55,9.07706357]
[1734355937888,9.07706357,215.61,215.55,9.07706357]
[1734355938093,1.87173072,215.69,215.55,9.07706357]
[1734355938359,9.07706357,215.63,215.56,15.16086357]
[1734355939132,9.07706357,215.62,215.56,15.16086357]
[1734355939815,1.82771658,215.71,215.56,15.16086357]
[1734355940018,1.0299,215.74,215.58,9.07706357]
[1734355940221,9.07706357,215.66,215.59,34.41824757]
[1734355940592,2.77427376,215.69,215.59,34.41824757]
[1734355940791,9.07706357,215.67,215.6,9.07706357]
[1734355941109,6.05243396,215.79,215.61,23.776884]
[1734355941297,9.07706357,215.67,215.61,23.776884]
[1734355941694,9.07706357,215.66,215.59,2.25984729]
[1734355941907,9.07706357,215.63,215.59,1.5643]
[1734355942134,9.07706357,215.62,215.59,1.5643]
[1734355942700,9.07706357,215.63,215.59,1.5643]
[1734355942921,2.77337345,215.71,215.6,9.07706357]
[1734355943100,9.07706357,215.66,215.6,9.07706357]
[1734355943299,9.07706357,215.67,215.61,9.07706357]
[1734355943501,9.07706357,215.66,215.6,32.85394757]
[1734355943702,9.07706357,215.67,215.6,32.85394757]
[1734355944097,9.07706357,215.67,215.61,9.07706357]
[1734355944619,9.07706357,215.68,215.62,15.10406357]
[1734355945002,9.07706357,215.68,215.62,15.79954568]
[1734355945327,9.07706357,215.68,215.62,6.027]
[1734355947097,20.0,215.76,215.62,6.027]
[1734355947301,9.07706357,215.67,215.62,6.027]
[1734355947604,9.07706357,215.68,215.62,6.027]
[1734355947836,9.07706357,215.68,215.62,15.10406357]
[1734355950512,9.07706357,215.69,215.62,15.10406357]
[1734355950722,2.89763287,215.79,215.65,1.6334]
[1734355950955,9.07706357,215.71,215.65,1.6334]
[1734355951628,2.89763287,215.79,215.65,1.6334]
[1734355951819,9.07706357,215.71,215.65,1.6334]
[1734355952944,22.89763287,215.79,215.65,1.6334]
[1734355953150,9.07706357,215.71,215.65,1.6334]
[1734355954449,9.07706357,215.68,215.65,1.6334]
[1734355954753,9.07706357,215.67,215.65,1.6334]
[1734355955246,9.07706357,215.66,215.65,1.6334]
[1734355955416,9.07706357,215.66,215.62,6.027]
[1734355955620,9.07706357,215.63,215.62,6.027]
[1734355956120,9.07706357,215.63,215.57,6.2777]
[1734355956319,9.07706357,215.59,215.57,6.2777]
[1734355956737,9.07706357,215.6,215.57,6.2777]
[1734355957422,9.07706357,215.58,215.57,6.2777]
[1734355957939,9.07706357,215.58,215.55,1.5396]
[1734355958142,9.07706357,215.57,215.55,1.5396]
[1734355959444,9.07706357,215.56,215.55,1.5396]
[1734355960132,9.07706357,215.56,215.52,6.1065]
[1734355960736,9.07706357,215.55,215.52,6.1065]
[1734355962740,9.07706357,215.56,215.52,6.1065]
[1734355966164,9.07706357,215.55,215.52,6.1065]
[1734355969945,9.07706357,215.53,215.5,1.5495]
[1734355971863,9.07706357,215.51,215.47,6.6137]
[1734355972035,20.0,215.57,215.47,6.6137]
[1734355972036,9.07706357,215.5,215.47,6.6137]
[1734355972454,20.0,215.57,215.47,6.6137]
[1734355972650,9.07706357,215.51,215.47,6.6137]
[1734355972870,20.0,215.57,215.47,15.69076357]
[1734355973055,9.07706357,215.54,215.47,15.69076357]
[1734355973373,9.07706357,215.54,215.48,9.07706357]
[1734355975067,9.07706357,215.54,215.47,15.69076357]
[1734355975265,20.0,215.57,215.47,15.69076357]
[1734355975266,9.07706357,215.53,215.47,15.69076357]
[1734355975484,9.07706357,215.52,215.47,6.6137]
[1734355975769,9.07706357,215.51,215.47,6.6137]
[1734355976643,9.07706357,215.5,215.47,6.6137]
[1734355977533,9.07706357,215.51,215.47,6.6137]
[1734355978342,9.07706357,215.52,215.47,6.6137]
[1734355978767,20.0,215.57,215.48,9.07706357]
[1734355979071,9.07706357,215.57,215.51,9.07706357]
[1734355979236,9.07706357,215.56,215.5,9.07706357]
[1734355980245,9.07706357,215.57,215.5,9.07706357]
[1734355980448,9.07706357,215.59,215.53,9.07706357]
[1734355980644,9.07706357,215.6,215.53,9.07706357]
[1734355981389,9.07706357,215.59,215.53,9.07706357]
[1734355982248,9.07706357,215.6,215.53,9.07706357]
[1734355982651,9.07706357,215.6,215.55,6.4354]
[1734355983084,9.07706357,215.59,215.55,6.4354]
[1734355984482,9.07706357,215.6,215.55,6.4354]
[1734355985059,9.07706357,215.59,215.55,6.4354]
[1734355986271,9.07706357,215.58,215.55,6.4354]
[1734355987180,9.07706357,215.56,215.5,6.5429]
[1734355987495,2.82040136,215.68,215.54,9.07706357]
[1734355987685,9.07706357,215.6,215.54,9.07706357]
[1734355987900,9.07706357,215.59,215.53,9.07706357]
[1734355988197,9.07706357,215.59,215.52,9.07706357]
[1734355988382,9.07706357,215.59,215.54,23.776884]
[1734355989492,9.07706357,215.58,215.52,9.07706357]
[1734355991069,9.07706357,215.57,215.5,15.61996357]
[1734355991289,9.07706357,215.57,215.51,9.77294476]
[1734355991903,9.07706357,215.58,215.52,9.07706357]
[1734355992105,22.82040136,215.68,215.51,0.69588119]
[1734355992282,9.07706357,215.63,215.57,9.07706357]
[1734355992487,9.07706357,215.63,215.57,10.63716357]
[1734355992992,9.07706357,215.64,215.57,10.63716357]
[1734355993376,9.07706357,215.63,215.57,10.63716357]
[1734355993577,9.07706357,215.62,215.57,1.5601]
[1734355993771,9.07706357,215.61,215.57,1.5601]
[1734355995502,9.07706357,215.63,215.58,6.5379]
[1734355995717,9.07706357,215.59,215.53,0.69566195]
[1734355996000,20.0,215.68,215.54,9.77284989]
[1734355996298,9.07706357,215.62,215.56,9.07706357]
[1734355996498,20.0,215.7,215.57,9.77276346]
[1734355996704,20.0,215.68,215.57,9.77276346]
[1734355996905,20.0,215.68,215.58,9.07706357]
[1734355996906,20.0,215.62,215.58,9.07706357]
[1734355997206,20.0,215.62,215.57,0.69569989]
[1734355997207,20.0,215.62,215.57,9.07706357]
[1734355997975,9.07706357,215.64,215.57,9.07706357]
[1734355998176,9.07706357,215.64,215.58,0.69562881]
[1734355998408,36.30825428,215.71,215.57,9.07706357]
[1734355998595,9.07706357,215.64,215.57,9.07706357]
[1734355999510,9.07706357,215.65,215.59,16.95106357]
[1734355999672,9.07706357,215.65,215.6,0.69556557]
[1734356000706,9.07706357,215.66,215.6,9.77262914]
[1734356000921,9.07706357,215.67,215.6,9.77262914]
[1734356001908,9.07706357,215.66,215.6,9.77262914]
[1734356003314,9.07706357,215.65,215.6,0.69556557]
[1734356003623,9.07706357,215.64,215.59,7.874]
[1734356004138,9.07706357,215.63,215.59,7.874]
[1734356004421,9.07706357,215.61,215.59,7.874]
[1734356006122,9.07706357,215.6,215.59,7.874]
[1734356007520,9.07706357,215.61,215.59,7.874]
[1734356007721,9.07706357,215.6,215.59,6.322]
[1734356008710,9.07706357,215.6,215.54,17.27956357]
[1734356010326,20.0,215.68,215.56,9.07706357]
[1734356010494,9.07706357,215.63,215.56,9.07706357]
[1734356010698,1.80522869,215.71,215.59,9.07706357]
[1734356011026,9.07706357,215.66,215.6,0.69554199]
[1734356011219,9.07706357,215.65,215.59,9.07706357]
[1734356011819,9.07706357,215.65,215.57,0.69554199]
[1734356012001,9.07706357,215.65,215.58,9.07706357]
[1734356012400,9.07706357,215.65,215.59,0.69557902]
[1734356012596,9.07706357,215.67,215.6,9.07706357]
[1734356012797,9.07706357,215.68,215.61,9.77259768]
[1734356013002,20.0,215.65,215.62,9.07706357]
[1734356013614,20.0,215.66,215.62,9.07706357]
[1734356014000,20.0,215.66,215.61,0.69553411]
[1734356014330,29.07706357,215.66,215.6,8.4660256]
[1734356014704,20.0,215.66,215.6,17.54308917]
[1734356016309,29.07706357,215.66,215.6,8.4660256]
[1734356017435,29.07706357,215.66,215.6,7.7705]
[1734356018509,9.07706357,215.65,215.6,7.7705]
[1734356020425,9.07706357,215.62,215.6,7.7705]
[1734356020627,9.07706357,215.61,215.55,7.8719]
[1734356020975,9.07706357,215.59,215.55,7.8719]
[1734356021137,20.0,215.7,215.58,9.07706357]
[1734356021300,9.07706357,215.66,215.59,9.77259461]
[1734356022439,9.07706357,215.65,215.59,9.77259461]
[1734356022816,9.07706357,215.64,215.59,0.69553104]
[1734356023932,9.07706357,215.64,215.58,0.69560616]
[1734356024637,9.07706357,215.63,215.58,0.69560616]
[1734356025031,9.07706357,215.62,215.55,17.64459546]
[1734356025421,9.07706357,215.64,215.57,9.07706357]
[1734356025744,9.07706357,215.64,215.57,9.77269157]
[1734356027026,9.07706357,215.63,215.57,0.695628]
[1734356027744,9.07706357,215.62,215.55,16.94896357]
[1734356028050,9.07706357,215.6,215.55,7.8719]
[1734356028223,9.07706357,215.59,215.55,7.8719]
[1734356029333,9.07706357,215.58,215.55,7.8719]
[1734356030230,20.0,215.53,215.49,6.5637]
[1734356030435,29.07706357,215.53,215.49,6.5637]
[1734356031639,20.0,215.53,215.49,6.5637]
[1734356032146,9.07706357,215.52,215.49,6.5637]
[1734356032538,9.07706357,215.51,215.49,6.5637]
[1734356032737,9.07706357,215.51,215.44,6.1946]
[1734356032942,9.07706357,215.5,215.44,15.27166357]
[1734356034739,9.07706357,215.49,215.44,6.1946]
[1734356035331,9.07706357,215.48,215.44,6.1946]
[1734356035531,9.07706357,215.49,215.44,6.1946]
[1734356035933,23.776884,215.56,215.44,6.1946]
[1734356036136,9.07706357,215.5,215.44,6.1946]
[1734356038133,9.07706357,215.49,215.44,6.1946]
[1734356039633,9.07706357,215.48,215.44,6.1946]
[1734356040441,9.07706357,215.47,215.44,6.1946]
[1734356040639,9.07706357,215.48,215.44,6.1946]
[1734356042568,9.07706357,215.48,215.43,0.5743931]
[1734356042790,9.07706357,215.44,215.43,0.5743931]
[1734356044983,20.0,215.46,215.43,0.5743931]
[1734356045270,2.73597411,215.55,215.43,0.5743931]
[1734356045598,9.07706357,215.48,215.43,0.5743931]
[1734356045744,9.07706357,215.49,215.43,9.65145667]
[1734356046278,9.07706357,215.48,215.43,0.5743931]
[1734356046779,2.73597411,215.55,215.43,0.5743931]
[1734356046780,9.07706357,215.46,215.43,0.5743931]
[1734356047080,2.73597411,215.55,215.43,0.5743931]
[1734356047081,9.07706357,215.48,215.43,0.5743931]
[1734356050373,9.07706357,215.47,215.43,0.5743931]
[1734356050875,9.07706357,215.45,215.43,0.5743931]
[1734356051555,9.07706357,215.44,215.43,0.5743931]
[1734356053764,20.0,215.41,215.38,4.12120891]
[1734356054082,20.0,215.36,215.24,6.4165]
[1734356054249,9.07706357,215.25,215.24,6.4165]
[1734356055986,14.24535808,215.25,215.22,0.5587271]
[1734356056172,14.24535808,215.23,215.22,0.5587271]
[1734356056384,14.24535808,215.23,215.22,0.0587271]
[1734356058864,14.24535808,215.24,215.22,0.0587271]
[1734356059386,14.24535808,215.23,215.22,0.0587271]
[1734356059952,14.24535808,215.25,215.22,0.0587271]
[1734356060986,20.0,215.32,215.22,0.0587271]
[1734356060987,14.24535808,215.24,215.22,0.0587271]
[1734356063268,14.24535808,215.23,215.22,0.0587271]
[1734356068210,14.24535808,215.24,215.22,0.0587271]
[1734356069568,14.24535808,215.28,215.22,14.30408518]
[1734356069767,14.24535808,215.29,215.22,14.30408518]